[Event "Frauenbundesliga 2024-25"]
[Site "Germany"]
[Date "2025.01.26"]
[Round "4.10"]
[White "Koehler, Inken"]
[Black "Otikova, Elina"]
[Result "1-0"]
[Annotator "TA"]
[ECO "A20"]
[WhiteElo "2053"]
[BlackElo "2089"]
[PlyCount "81"]
[EventDate "2024.11.06"]
[EventType "team-tourn"]
[EventCountry "GER"]
[SourceTitle "playchess.com"]
[Source "ChessBase"]
[SourceQuality "1"]
[TimeControl "40/5400+30:1800+30"]

{[%evp 11,81,17,3,25,27,15,25,0,0,-3,31,29,53,41,56,37,42,57,108,96,91,77,143,133,131,128,127,127,106,118,129,113,360,332,461,510,535,482,548,548,525,535,479,414,423,415,906,893,29990,29991,29991,29980,29992,29993,29992,29983,29983,29982,29982,29983,29983,29984,29984,29985,29985,29986,29986,29987,29987,29988,29988,29989]} 1. c4 {[%emt 0:00:02]} e5 {[%emt 0:00:44]} 2. g3 {[%emt 0:00:12]} Nf6 {[%emt 0:00:39]} 3. Bg2 {[%emt 0:00:06]} d5 {[%emt 0:00:50]} 4. cxd5 {[%emt 0:00:20]} Nxd5 {[%emt 0:00:07]} 5. Nf3 {[%emt 0:00:08]} Nc6 {[%emt 0:00:33]} 6. O-O {[%emt 0:00:13]} Nb6 {[%emt 0:00:31]} 7. b3 {[%emt 0:00:22] A20: English Opening: 1...e5.} Be7 {[%emt 0:02:28]} 8. Bb2 {[%emt 0:00:37]} f6 {[%emt 0:03:31]} 9. Nc3 {[%emt 0:00:22] White has an edge.} O-O {[%emt 0:02:11]} 10. Rc1 {[%emt 0:00:50]} a5 {[%emt 0:01:57][%cal Ba7a5,Ba5a4][%mdl 32]} 11. Qc2 $146 {[%emt 0:10:23][%cal Od2d4]} (11. d3 Be6 12. Nd2 Qd7 13. Nc4 Rfd8 14. Nxb6 cxb6 15. Na4 Ra6 16. Qc2 Nb4 17. Qb1 {0-1 Gretarsson,H (2597)-Hjartarson,J (2519) ISL-chT1 2122 2021 (9.3)}) 11... Nb4 {[%emt 0:05:28]} 12. Qb1 {[%emt 0:00:26][%cal Od2d4]} c6 {[%emt 0:06:17]} 13. Rfd1 {[%emt 0:03:24]} a4 {[%emt 0:04:27]} 14. d4 {[%emt 0:27:05]} exd4 {[%emt 0:01:48]} (14... a3 $14 15. Ba1 (15. dxe5 axb2 16. Rxd8 bxc1=Q+ 17. Qxc1 Rxd8 $17) 15... exd4) 15. Rxd4 {[%emt 0:03:23]} Qe8 {[%emt 0:00:12]} 16. bxa4 {[%emt 0:11:48] White is more active.} f5 {[%emt 0:08:50]} ({Black should try} 16... c5) 17. Ba3 {[%emt 0:06:32]} N4d5 {[%emt 0:08:34]} 18. Bxe7 {[%emt 0:07:53]} Qxe7 {[%emt 0:00:06]} 19. Nxd5 {[%emt 0:00:21]} Nxd5 {[%emt 0:00:08]} 20. e3 {[%emt 0:00:40]} Qa3 {[%emt 0:03:15]} 21. Qc2 {[%emt 0:06:23] Against Nc3} Nxe3 $2 {[%emt 0:07:42] This costs Black the game.} 22. fxe3 $18 {[%emt 0:01:28]} Qxe3+ {[%emt 0:00:05]} 23. Kh1 {[%emt 0:00:26]} Qh6 {[%emt 0:07:25]} 24. Rcd1 {[%emt 0:03:10]} Re8 {[%emt 0:05:30]} 25. Rd8 {[%emt 0:02:15]} Be6 {[%emt 0:00:24]} 26. Rxa8 {[%emt 0:00:13]} Rxa8 {[%emt 0:00:07]} 27. Nd4 {[%emt 0:01:27]} f4 {[%emt 0:06:50]} 28. Nxe6 {[%emt 0:04:00]} fxg3 {[%emt 0:00:54] [#]} (28... Qxe6 $142 29. Qb3 (29. gxf4 Qf7 $18) 29... Qxb3 30. axb3 Re8 31. gxf4 Re3) 29. Bf1 $1 {[%emt 0:00:43] Black must now prevent Bc4.} gxh2 {[%emt 0:08:54]} (29... Kh8 30. Bc4) 30. Bc4 {[%emt 0:02:17] White mates.} Kh8 {[%emt 0:00:14]} 31. Qd3 {[%emt 0:05:52]} Re8 {[%emt 0:02:56]} 32. Qd7 {[%emt 0:00:32][%csl LRb7,LRe8][%cal Rd7e8]} Qg6 {[%emt 0:01:08] [#]} 33. Qxe8+ $3 {[%emt 0:00:14][%mdl 512]} Qxe8 {[%emt 0:00:10]} 34. Rd8 {[%emt 0:00:03]} (34. Kxh2 $2 {loses.} Qh5+ 35. Kg3 Qxd1 $19) 34... Qxd8 {[%emt 0:00:06]} 35. Nxd8 {[%emt 0:00:06]} b6 {[%emt 0:01:26]} 36. Nxc6 {[%emt 0:00:10]} g5 {[%emt 0:00:16]} 37. a5 {[%emt 0:00:35]} bxa5 {[%emt 0:00:07]} 38. Nxa5 {[%emt 0:00:03]} Kg7 {[%emt 0:00:17]} 39. Nc6 {[%emt 0:00:23]} Kf8 {[%emt 0:00:22]} 40. a4 {[%emt 0:00:11]} Ke8 {[%emt 0:00:05]} 41. Be6 {[%emt 0:30:09] Weighted Error Value: White=0.08 (flawless) /Black=0.73  Loses game:     	---       	Black=1      Mistake:       	---       	Black=3      Inaccurate:     	---       	Black=3      OK:         	White=12    	Black=3      Best:        	White=1     	Black=2} 1-0

[Event "Frauenbundesliga 2024-25"]
[Site "Germany"]
[Date "2025.01.26"]
[Round "4.11"]
[White "Kucharska, Honorata"]
[Black "Dwilewicz, Katarzyna"]
[Result "1/2-1/2"]
[Annotator "TA"]
[ECO "B40"]
[WhiteElo "2071"]
[BlackElo "2173"]
[PlyCount "56"]
[EventDate "2024.11.06"]
[EventType "team-tourn"]
[EventCountry "GER"]
[SourceTitle "playchess.com"]
[Source "ChessBase"]
[SourceQuality "1"]
[TimeControl "40/5400+30:1800+30"]

{[%evp 9,56,0,26,18,45,34,44,16,25,11,12,0,29,-4,-10,-10,-4,-8,-10,-6,0,0,15,8,24,13,3,0,0,8,12,0,22,24,20,24,22,0,0,0,0,0,0,0,0,0,0,0,0]} 1. e4 {[%emt 0:00:02]} c5 {[%emt 0:00:24]} 2. Nf3 {[%emt 0:00:13]} e6 {[%emt 0:00:15]} 3. d3 {[%emt 0:00:33]} Nc6 {[%emt 0:00:05]} 4. g3 {[%emt 0:00:12]} Nf6 {[%emt 0:00:37]} 5. Bg2 {[%emt 0:00:28]} e5 {[%emt 0:05:46]} 6. Nc3 {[%emt 0:05:13] B40: Sicilian: 2...e6, Unusual lines.} h6 {[%emt 0:01:27]} 7. O-O {[%emt 0:03:11]} Be7 {[%emt 0:00:05]} 8. Be3 {[%emt 0:01:27] White is slightly better.} O-O $146 {[%emt 0:03:47]} (8... d6 9. Nd5 Be6 10. Nxf6+ Bxf6 11. Nd2 d5 12. Bxc5 b6 13. Ba3 b5 14. b3 b4 {1-0 Garces Suaza,C (1605)-Cruz Gomez,D (1374) COL-ch U20 Cali 2023 (1)}) 9. Nd2 {[%emt 0:05:53]} d6 {[%emt 0:04:56]} 10. Kh1 {[%emt 0:06:54]} Ng4 {[%emt 0:06:07]} 11. h3 {[%emt 0:06:50]} Nxe3 {[%emt 0:00:14]} 12. fxe3 {[%emt 0:00:01]} Be6 {[%emt 0:04:21]} 13. Qe2 {[%emt 0:05:06]} Qd7 {[%emt 0:01:21]} 14. Kh2 {[%emt 0:00:06]} Rae8 {[%emt 0:03:51]} 15. a4 {[%emt 0:04:43]} f5 {[%emt 0:02:20]} 16. exf5 {[%emt 0:03:17]} Bxf5 {[%emt 0:00:24]} 17. Nd5 {[%emt 0:00:49]} Bd8 {[%emt 0:02:16]} 18. Ne4 {[%emt 0:07:02]} Nb4 {[%emt 0:06:46]} 19. Nec3 {[%emt 0:03:12]} Nc6 {[%emt 0:05:53]} 20. Rf2 {[%emt 0:05:14]} Be6 {[%emt 0:07:30]} 21. Raf1 {[%emt 0:01:34]} Rxf2 {[%emt 0:00:54]} 22. Qxf2 {[%emt 0:00:08]} Ba5 {[%emt 0:08:29]} 23. Qf3 {[%emt 0:04:20] The position is equal.} Bxc3 {[%emt 0:03:12]} 24. bxc3 {[%emt 0:03:37]} Qd8 {[%emt 0:21:10]} 25. Qe4 {[%emt 0:06:52]} Ne7 {[%emt 0:04:00] Prevents Qg6} 26. Nxe7+ {[%emt 0:04:25]} Rxe7 {[%emt 0:00:06]} 27. c4 {[%emt 0:00:06]} b6 $1 {[%emt 0:01:48]} 28. Qh4 {[%emt 0:07:54]} Rd7 {[%emt 0:06:26] Weighted Error Value: White=0.06 (flawless) /Black=0.06 (flawless)   Inaccurate:     	White=2     	Black=2      OK:         	White=8     	Black=9      Strong:       	---       	Black=1} 1/2-1/2

[Event "Frauenbundesliga 2024-25"]
[Site "Germany"]
[Date "2025.01.26"]
[Round "4.11"]
[White "Rath, Alina"]
[Black "Brandt, Carina"]
[Result "0-1"]
[Annotator "TA"]
[ECO "A20"]
[WhiteElo "2030"]
[BlackElo "2061"]
[PlyCount "21"]
[EventDate "2024.11.06"]
[EventType "team-tourn"]
[EventCountry "GER"]
[SourceTitle "playchess.com"]
[Source "ChessBase"]
[SourceQuality "1"]
[TimeControl "40/5400+30:1800+30"]

{[%evp 9,21,12,-6,14,0,-7,0,-51,-29,-67,-54,-85,-58,-90]} 1. c4 e5 2. g3 Nf6 3. Bg2 c6 4. d4 e4 5. Nc3 Bb4 6. Qb3 {A20: English Opening: 1...e5.} Bxc3+ 7. bxc3 O-O 8. e3 (8. c5 $11) 8... b6 $146 (8... d6 9. Ba3 Na6 10. Ne2 Rb8 11. O-O Re8 12. h3 h5 13. Kh1 Bf5 14. Ng1 Qd7 {0-1 Ono,D (1990)-Tomas Falcon,J (2144) ARG-ch U18 Villa Martelli 2016 (3.5)}) 9. Ba3 d6 10. Ne2 Re8 11. O-O {[%emt 0:05:02] White did not feel at home in the position after the opening.   Weighted Error Value: White=0.33/Black=0.08 (flawless)   Mistake:       	White=1     	---        Inaccurate:     	White=3     	Black=1      OK:         	---       	Black=3} 0-1

[Event "Frauenbundesliga 2024-25"]
[Site "Germany"]
[Date "2025.01.26"]
[Round "4.11"]
[White "Yurenok, Maria S"]
[Black "Injac, Teodora"]
[Result "0-1"]
[Annotator "TA"]
[ECO "C84"]
[WhiteElo "1993"]
[BlackElo "2453"]
[PlyCount "76"]
[EventDate "2024.11.06"]
[EventType "team-tourn"]
[EventCountry "GER"]
[SourceTitle "playchess.com"]
[Source "ChessBase"]
[SourceQuality "1"]
[TimeControl "40/5400+30:1800+30"]

{[%evp 16,76,29,25,27,30,39,32,29,30,36,25,32,-13,0,0,0,0,14,0,0,0,0,0,0,7,31,-11,-17,-17,-10,-64,-54,-58,-6,-5,-9,-149,-133,-145,-150,-160,-157,-287,-147,-161,-128,-342,-339,-461,-395,-626,-625,-956,-937,-2294,-1199,-1314,-570,-592,-581,-559,-547]} 1. e4 {[%emt 0:00:04]} e5 {[%emt 0:01:09]} 2. Nf3 {[%emt 0:00:07]} Nc6 {[%emt 0:00:05]} 3. Bb5 {[%emt 0:00:08]} a6 {[%emt 0:00:29]} 4. Ba4 {[%emt 0:00:11]} d6 {[%emt 0:00:55]} 5. O-O {[%emt 0:00:20]} Bd7 {[%emt 0:02:10]} 6. d4 {[%emt 0:01:40]} Nf6 {[%emt 0:07:22]} 7. Bxc6 {[%emt 0:01:33]} Bxc6 {[%emt 0:00:07]} 8. Re1 {[%emt 0:00:14]} Be7 {[%emt 0:02:21]} 9. Nc3 {[%emt 0:04:33]} exd4 {[%emt 0:04:30] C84: Closed Ruy Lopez: Unusual White 6th moves.} 10. Nxd4 {[%emt 0:00:23]} Bd7 {[%emt 0:00:04]} 11. h3 {[%emt 0:04:27]} O-O {[%emt 0:00:38] White is slightly better.} 12. Qf3 {[%emt 0:03:33]} b5 $1 {[%emt 0:02:17][%mdl 4] is currently scoring better than 12...Re8.} 13. a3 {[%emt 0:14:50]} Re8 {[%emt 0:08:21]} 14. Nf5 $146 {[%emt 0:02:51]} (14. b3 Qc8 15. Bb2 Bf8 16. g4 h6 17. Kh2 Qb7 18. Nf5 Bxf5 19. gxf5 c6 20. Rg1 {0-1 Vokhidov,S (2529)-Sindarov,J (2544) UZB-ch Tashkent 2021 (7)}) 14... Bxf5 {[%emt 0:01:24]} 15. Qxf5 {[%emt 0:00:25]} c6 {[%emt 0:08:34]} 16. Bg5 {[%emt 0:09:05]} g6 {[%emt 0:04:30]} 17. Qf3 {[%emt 0:00:48]} Nd7 {[%emt 0:00:04]} 18. Bxe7 {[%emt 0:06:13]} Qxe7 {[%emt 0:00:02]} 19. Rad1 {[%emt 0:01:35]} Rad8 {[%emt 0:01:40]} 20. Qg3 {[%emt 0:03:13]} Nc5 {[%emt 0:14:16][%cal Od6d5]} 21. f4 {[%emt 0:03:08]} a5 {[%emt 0:01:44]} 22. e5 {[%emt 0:11:18]} d5 {[%emt 0:24:21]} 23. f5 {[%emt 0:05:58]} (23. Qf2 $11) 23... b4 $15 {[%emt 0:00:22]} 24. f6 {[%emt 0:05:32]} Qc7 {[%emt 0:07:49]} (24... Qa7 $1 $15 25. Qf2 (25. axb4 axb4 26. Qf2 bxc3 $17) 25... bxc3) 25. axb4 {[%emt 0:15:56]} axb4 {[%emt 0:00:01]} 26. Na2 {[%emt 0:00:06]} (26. Qe3 $1 $11 {was the only way to keep the balance.}) 26... Ne4 $17 {[%emt 0:01:06]} 27. Qf4 {[%emt 0:00:04] [#]} g5 $1 $36 {[%emt 0:03:05][%mdl 2048] Black is really pushing.} (27... Qxe5 $6 28. Qxe5 Rxe5 29. Nxb4 $14) (27... Rxe5 $2 28. Rxe4 (28. Nxb4 $2 Qb6+ 29. Kh2 Rf5 $19) 28... dxe4 29. Rxd8+ Qxd8 30. Qxe5 $18) 28. Qe3 {[%emt 0:04:13]} c5 {[%emt 0:02:14]} (28... Rxe5 29. Nxb4 Qd6 30. Nd3 $15) 29. h4 {[%emt 0:01:22]} (29. Nc1 $17) 29... h6 {[%emt 0:00:29]} (29... gxh4 $2 {is the wrong capture.} 30. Qh6 Nxf6 31. Qg5+ (31. exf6 Qg3 $16) (31. Qxf6 Re6 $18) 31... Kf8 32. Qxf6 $18) ({Black should try} 29... Qxe5 $19 30. c3 Ra8 (30... Qxf6 $2 31. hxg5 Qe6 32. Qf3 $19) (30... gxh4 $2 31. cxb4 Qxb2 32. Re2 $19)) 30. hxg5 {[%emt 0:00:02]} hxg5 {[%emt 0:00:04]} 31. c4 $2 {[%emt 0:00:59] Now White is beyond hope.} Qxe5 $19 {[%emt 0:00:18]} 32. cxd5 {[%emt 0:00:08][%cal Oa2b4]} Rxd5 {[%emt 0:00:57]} 33. Rxd5 {[%emt 0:00:28]} (33. b3 $142) 33... Qxd5 {[%emt 0:00:02] Black is clearly winning.} 34. Qf3 {[%emt 0:00:07]} Qxa2 {[%emt 0:01:11]} 35. Qh5 {[%emt 0:01:07]} Qd5 {[%emt 0:02:01]} 36. Rd1 {[%emt 0:00:56] Repels Qd4+} Nxf6 {[%emt 0:01:00] [#] Hoping for ...Re1+.} 37. Rxd5 {[%emt 0:00:37]} Nxh5 {[%emt 0:00:01]} 38. Rxg5+ {[%emt 0:00:06]} Ng7 {[%emt 0:00:01] Weighted Error Value: White=0.73/Black=0.56  Loses game:     	White=1     	---        Mistake:       	White=4     	Black=2      Inaccurate:     	White=4     	---        OK:         	White=6     	Black=7      Best:        	---       	Black=3} 0-1

[Event "Frauenbundesliga 2024-25"]
[Site "Germany"]
[Date "2025.01.26"]
[Round "4.12"]
[White "Heinemann, Josefine"]
[Black "Kanakova, Natalie"]
[Result "1/2-1/2"]
[Annotator "TA"]
[ECO "B30"]
[WhiteElo "2308"]
[BlackElo "2163"]
[PlyCount "80"]
[EventDate "2024.11.06"]
[EventType "team-tourn"]
[EventCountry "GER"]
[SourceTitle "playchess.com"]
[Source "ChessBase"]
[SourceQuality "1"]
[TimeControl "40/5400+30:1800+30"]

{[%evp 9,80,12,0,0,48,42,49,42,71,58,54,39,50,60,86,78,72,49,85,83,86,78,85,75,89,84,100,82,83,81,81,87,116,61,51,47,57,29,64,23,23,22,34,4,20,13,20,20,21,14,12,13,12,12,12,12,18,10,33,0,0,0,24,0,14,0,0,0,8,0,0,0,0]} 1. e4 {[%emt 0:00:03]} c5 {[%emt 0:00:07]} 2. Nf3 {[%emt 0:00:04]} Nc6 {[%emt 0:00:06]} 3. Bb5 {[%emt 0:00:05]} e6 {[%emt 0:00:25]} 4. Bxc6 {[%emt 0:00:05]} bxc6 {[%emt 0:00:09]} 5. b3 {[%emt 0:00:10]} d6 {[%emt 0:05:28]} 6. e5 {[%emt 0:00:47] B30: Sicilian: 2...Nc6 3 Bb5, lines without ...g6.} f6 {[%emt 0:03:04]} (6... dxe5 $11 7. Nc3 (7. Nxe5 Qg5 $11) 7... f6) 7. exd6 $14 {[%emt 0:00:21]} Bxd6 {[%emt 0:00:12]} 8. Nc3 {[%emt 0:01:39] White is slightly better.} Nh6 $146 {[%emt 0:04:19]} (8... Ne7 9. Ne4 e5 10. d3 Bg4 11. h3 Bh5 12. O-O O-O 13. Ng3 Bf7 14. Ne4 Bh5 {0-1 Seul,G (2340)-Vocaturo,D (2624) Bayern-chI Bank Hofmann 25th 2022 (7)}) 9. Ne4 {[%emt 0:06:19]} Be7 {[%emt 0:03:14]} 10. Ng3 {[%emt 0:01:10]} O-O {[%emt 0:03:47]} 11. O-O {[%emt 0:00:13]} Nf5 {[%emt 0:06:23]} 12. Nxf5 {[%emt 0:03:53]} exf5 {[%emt 0:00:10]} 13. Qe2 {[%emt 0:01:10]} Bd6 {[%emt 0:02:22]} 14. Re1 {[%emt 0:02:51]} Bd7 {[%emt 0:01:02]} 15. Qc4+ {[%emt 0:01:26]} Kh8 {[%emt 0:00:42]} 16. d3 {[%emt 0:01:22]} Re8 {[%emt 0:13:01]} 17. Bf4 {[%emt 0:05:47]} Bf8 {[%emt 0:05:51]} 18. h4 {[%emt 0:03:19]} Rxe1+ {[%emt 0:05:01]} 19. Rxe1 {[%emt 0:00:12]} Be8 {[%emt 0:00:43] Prevents Qf7} 20. Nd2 {[%emt 0:10:32][%cal Bf3d2,Bd2c4,Bc4d6][%mdl 32] White has more active pieces.} Qd4 {[%emt 0:08:55]} 21. Qxd4 {[%emt 0:04:10]} ({White should try} 21. Be3 $16 Qe5 22. f3) 21... cxd4 {[%emt 0:00:05]} 22. Nc4 {[%emt 0:00:13]} Kg8 {[%emt 0:08:05]} 23. Bd6 {[%emt 0:01:35]} Bd7 {[%emt 0:00:34]} 24. Bxf8 {[%emt 0:01:55]} Kxf8 {[%emt 0:00:06][%mdl 4096] Endgame KRB-KRN} 25. Nd6 {[%emt 0:04:26]} Rb8 {[%emt 0:01:38]} 26. f4 {[%emt 0:01:50]} h5 {[%emt 0:04:04]} 27. Kf2 {[%emt 0:02:05]} c5 {[%emt 0:01:16]} 28. Nc4 {[%emt 0:02:41]} Kf7 {[%emt 0:03:47]} 29. Re2 {[%emt 0:01:18]} g6 {[%emt 0:02:04]} 30. Ke1 {[%emt 0:03:17]} Be6 {[%emt 0:01:53]} 31. Kd2 {[%emt 0:02:19]} Ke7 {[%emt 0:02:13]} 32. Na5 {[%emt 0:06:43]} Rb6 {[%emt 0:01:06] Repels Nc6+} 33. a3 {[%emt 0:01:41]} Kd7 {[%emt 0:00:54]} 34. Re1 {[%emt 0:01:50]} Bd5 {[%emt 0:04:55]} 35. g3 {[%emt 0:04:09]} Rb8 {[%emt 0:01:31]} 36. Nc4 {[%emt 0:05:42]} Bf3 {[%emt 0:03:04] The position is equal.} 37. Rb1 {[%emt 0:02:38]} Re8 {[%emt 0:01:26]} 38. Re1 {[%emt 0:00:10]} Rb8 {[%emt 0:00:19]} 39. Rb1 {[%emt 0:03:14]} Re8 {[%emt 0:00:03]} 40. Re1 {[%emt 0:00:11] Prevents Re2+.} Rb8 {Weighted Error Value: White=0.11 (very precise) /Black=0.10 (very precise)   Mistake:       	White=1     	Black=1      Inaccurate:     	White=4     	Black=5      OK:         	White=11    	Black=13     Best:        	White=1     	Black=1} 1/2-1/2

[Event "Frauenbundesliga 2024-25"]
[Site "Germany"]
[Date "2025.01.26"]
[Round "4.12"]
[White "Valkova, Angelika"]
[Black "Ciolacu, Alessia-Mihaela"]
[Result "0-1"]
[Annotator "TA"]
[ECO "E29"]
[WhiteElo "2001"]
[BlackElo "2124"]
[PlyCount "122"]
[EventDate "2024.11.06"]
[EventType "team-tourn"]
[EventCountry "GER"]
[SourceTitle "playchess.com"]
[Source "ChessBase"]
[SourceQuality "1"]
[TimeControl "40/5400+30:1800+30"]

{[%evp 22,122,0,0,0,0,0,0,0,11,46,31,58,39,65,54,81,64,55,31,96,95,89,70,72,25,26,-108,-77,-74,-77,-130,-129,-118,-135,-138,-130,-467,-24,-18,-39,-43,-41,-44,2,0,9,-85,-82,-77,-79,-81,-68,-73,-77,-84,-131,-352,-348,-628,-588,-531,-49,-49,-70,-258,-262,-429,-429,-421,-384,-374,-287,-798,-798,-1199,-1153,-1561,-1511,-1952,-1752,-1393,-2336,-1856,-10284,-29973,-29976,-29975,-29977,-29977,-29978,-29978,-29979,-29978,-29979,-29978,-29979,-29983,-29982,-29977,-29975,-29986,-29987]} 1. d4 {[%emt 0:00:04]} Nf6 {[%emt 0:00:08]} 2. c4 {[%emt 0:00:07]} e6 {[%emt 0:00:05]} 3. Nc3 {[%emt 0:00:05]} Bb4 {[%emt 0:00:16]} 4. e3 {[%emt 0:00:19]} O-O {[%emt 0:03:55]} 5. a3 {[%emt 0:00:56]} Bxc3+ {[%emt 0:00:37]} 6. bxc3 {[%emt 0:00:05]} c5 {[%emt 0:02:57]} 7. Bd3 {[%emt 0:00:06]} Nc6 {[%emt 0:01:37]} 8. Ne2 {[%emt 0:00:12][%cal Bg1e2,Be2g3,Bg3f5][%mdl 32]} d6 {[%emt 0:06:18]} 9. e4 {[%emt 0:01:54]} Ne8 {[%emt 0:09:49]} 10. O-O {[%emt 0:00:35]} b6 {[%emt 0:00:45]} 11. Be3 {[%emt 0:00:20]} Ba6 {[%emt 0:02:02]} 12. Ng3 {[%emt 0:00:05]} Rc8 {[%emt 0:06:33] E29: Nimzo-Indian: Sämisch: 5...0-0 6 e3 c5 7 Bd3 Nc6.} 13. Qe2 {[%emt 0:03:09]} Qd7 {[%emt 0:04:30]} 14. Rfd1 {[%emt 0:16:51]} Na5 {[%emt 0:04:11] The position is equal.} 15. d5 {[%emt 0:04:37]} e5 $146 {[%emt 0:09:59]} (15... Nc7 16. dxe6 Qxe6 17. Qf3 g6 18. Bf4 Rfd8 19. Bg5 Rd7 {0-1 Wessel,R-Berner,R RR-22323 freechess.de 2020}) 16. a4 {[%emt 1:09:05]} Rc7 {[%emt 0:06:04]} 17. Nf5 {[%emt 0:00:00]} Bc8 {[%emt 0:02:04]} 18. f4 {[%emt 0:00:00]} f6 {[%emt 0:01:36]} 19. Rf1 {[%emt 0:00:00]} Qd8 {[%emt 0:06:17]} 20. Ng3 {[%emt 0:00:00]} g6 {[%emt 0:05:14]} ({Black should play} 20... exf4 $1 $14 21. Rxf4 (21. Bxf4 g6 $16) 21... Rcf7) 21. f5 $16 {[%emt 0:00:00]} Ng7 {[%emt 0:01:54]} 22. h4 {[%emt 0:00:00]} Kh8 {[%emt 0:07:40]} 23. fxg6 {[%emt 0:00:00]} ({Better is} 23. Qf3 $16) 23... hxg6 $11 {[%emt 0:00:05]} 24. h5 {[%emt 0:00:00]} (24. Rf2 $11) 24... Nxh5 {[%emt 0:01:44]} 25. Nxh5 {[%emt 0:00:00]} gxh5 {[%emt 0:00:06]} 26. Qxh5+ {[%emt 0:00:00]} (26. Qf2 $142) 26... Rh7 $17 {[%emt 0:00:05]} 27. Qf3 {[%emt 0:00:00] [#]} f5 $1 {[%emt 0:02:50][%mdl 512]} 28. exf5 {[%emt 0:00:00] aiming for f6.} Qh4 {[%emt 0:00:20] Black attacks} 29. Ra2 $2 {[%emt 0:00:00][%mdl 8192]} (29. Qh3 $17 Qxh3 (29... Nxc4 30. Qxh4 Rxh4 31. Bg5 $14) 30. gxh3) 29... Nxc4 $2 {[%emt 0:03:58]} (29... Rg8 $1 $19 {[%cal Rg8g3]} 30. Qe4 Rg4) 30. g3 $1 $11 {[%emt 0:00:00]} Rg8 {[%emt 0:02:39] Some like it hot} 31. Rg2 {[%emt 0:00:00]} Nxe3 {[%emt 0:02:30]} (31... Qh1+ $2 32. Kf2 Qh5 33. Qxh5 (33. Bxc4 Bxf5 34. Qxh5 Rxh5 $18) 33... Rxh5 34. Bxc4 $16) 32. Qxe3 {[%emt 0:00:00]} Qh1+ {[%emt 0:01:28]} (32... Qxa4 $2 33. f6 Bh3 34. Bxh7 Kxh7 35. Qd3+ e4 36. Qe2 $18) 33. Kf2 {[%emt 0:00:00]} Qh6 {[%emt 0:00:29]} 34. g4 {[%emt 0:00:00]} (34. Qxh6 $11 {keeps the balance.} Rxh6 35. g4) 34... Qh4+ $17 {[%emt 0:01:59]} 35. Kf3 {[%emt 0:00:00] [#]} c4 $1 {[%emt 0:01:02]} 36. Be4 {[%emt 0:00:00] [#]} (36. Bc2 Rxg4) 36... Rxg4 $1 {[%emt 0:00:44]} 37. Rxg4 {[%emt 0:00:00]} Qh3+ {[%emt 0:00:02]} 38. Kf2 {[%emt 0:01:29]} Qxg4 {[%emt 0:00:06]} 39. f6 {[%emt 0:00:53]} (39. Rg1 $17 Rh2+ 40. Ke1 Qh4+ 41. Kd1) 39... Rh3 $19 {[%emt 0:01:20]} 40. f7 $2 {[%emt 0:04:39]} (40. Rh1 Qh4+ 41. Kg1) 40... Kg7 $1 {[%emt 0:01:54]} 41. Bf3 {[%emt 0:32:05]} Qf4 $40 {[%emt 0:16:57][%mdl 128] Black has some attack.} (41... Kxf7 $2 {too greedy.} 42. Bxg4 Rxe3 43. Kxe3+ $18) (41... Qh4+ $19 42. Ke2 Bf5 (42... Kxf7 43. Bg4+ Ke7 44. Bxh3 $11)) 42. Qxf4 $15 {[%emt 0:00:00]} exf4 {[%emt 0:00:05][%mdl 4096] Endgame KRB-KRB. Black is a pawn up.} 43. Rg1+ $2 {[%emt 0:00:00] Black continues to play with concentration.} (43. Re1 $15 Rh2+ (43... Kxf7 44. Re4 $17) 44. Kg1) 43... Kxf7 $19 {[%emt 0:00:33]} 44. Bg4 {[%emt 0:00:00]} (44. Rd1) 44... Bxg4 {[%emt 0:02:51]} 45. Rxg4 {[%emt 0:00:00]} Rxc3 {[%emt 0:00:06] Hoping for ...Kf6.} 46. Rxf4+ {[%emt 0:00:00] KR-KR. Black is two pawns up.} Ke7 {[%emt 0:00:22]} 47. Rh4 $2 {[%emt 0:00:00]} (47. Ke2) 47... a6 {[%emt 0:01:15]} 48. Rh7+ {[%emt 0:00:00]} Kf6 {[%emt 0:00:06]} 49. Ra7 {[%emt 0:00:00]} Ke5 {[%emt 0:01:31]} 50. Rxa6 {[%emt 0:00:00]} Rb3 {[%emt 0:00:14]} (50... Kxd5 51. Rxb6 Kc5 (51... Ra3 52. Ra6 $19) 52. Rb5+ Kd4 53. Rg5 $19) 51. a5 {[%emt 0:00:00]} Ra3 {[%emt 0:01:21]} (51... Kxd5 52. axb6 Kc5 53. Ra8) 52. Rxb6 {[%emt 0:00:00]} Rxa5 {[%emt 0:00:06]} ({Weaker is} 52... Kxd5 53. Ra6 $17) 53. Ke3 {[%emt 0:00:00]} Rxd5 {[%emt 0:00:41] Black mates.} 54. Rb8 {[%emt 0:00:00]} Rd3+ {[%emt 0:00:27]} 55. Ke2 {[%emt 0:00:00]} d5 {[%emt 0:00:45]} 56. Rc8 {[%emt 0:00:00]} Kd4 {[%emt 0:00:22]} 57. Rh8 {[%emt 0:00:00]} Kc3 {[%emt 0:00:34]} 58. Ra8 {[%emt 0:00:32]} Rd2+ {[%emt 0:00:49]} 59. Ke1 {[%emt 0:00:07]} Rb2 {[%emt 0:00:42]} 60. Ra3+ {[%emt 0:00:12]} Rb3 {[%emt 0:00:05]} 61. Ra2 {[%emt 0:00:05]} Rb1+ {[%emt 0:00:12] Weighted Error Value: White=0.90/Black=0.39  Loses game:     	White=3     	---        Missed win:     	---       	Black=1      Mistake:       	White=7     	Black=1      Inaccurate:     	White=1     	Black=5      OK:         	White=11    	Black=11     Best:        	White=1     	Black=6      Strong:       	White=1     	Black=1      Brilliant:      	---       	Black=2} 0-1